[Event "January 9 Late 2024"]
[Site "https://www.chess.com"]
[Date "2024.01.09"]
[Round "3"]
[White "Mokshanov, Alexey"]
[Black "Morales Garcia, Sergio Joshafatt"]
[Result "1/2-1/2"]
[Board "121"]
[TimeControl "180+1"]
[WhiteFideId "24121657"]
[BlackFideId "5106249"]
[WhiteElo "2623"]
[BlackElo "2454"]
[WhiteTeam "RUS"]
[BlackTeam "MEX"]
[WhiteClock "0:00:14"]
[BlackClock "0:00:03"]

1. e4 {[%clk 0:03:00]}  c5 {[%clk 0:02:59]} 2. Nf3 {[%clk 0:03:00]}  e6 {[%clk 0:03:00]} 3. g3 {[%clk 0:03:00]}  d5 {[%clk 0:02:59]} 4. exd5 {[%clk 0:03:00]}  exd5 {[%clk 0:03:00]} 5. Bg2 {[%clk 0:03:00]}  Nc6 {[%clk 0:03:00]} 6. O-O {[%clk 0:03:00]}  Bg4 {[%clk 0:03:00]} 7. d4 {[%clk 0:02:51]}  cxd4 {[%clk 0:02:56]} 8. h3 {[%clk 0:02:46]}  Bxf3 {[%clk 0:02:51]} 9. Qxf3 {[%clk 0:02:47]}  Nf6 {[%clk 0:02:51]} 10. Bg5 {[%clk 0:02:28]}  Be7 {[%clk 0:02:51]} 11. Bxf6 {[%clk 0:02:28]}  Bxf6 {[%clk 0:02:52]} 12. Re1+ {[%clk 0:02:28]}  Kf8 {[%clk 0:02:52]} 13. Nd2 {[%clk 0:02:17]}  g6 {[%clk 0:02:46]} 14. Qxd5 {[%clk 0:02:16]}  Kg7 {[%clk 0:02:40]} 15. Qxd8 {[%clk 0:02:14]}  Rhxd8 {[%clk 0:02:36]} 16. Bxc6 {[%clk 0:02:11]}  bxc6 {[%clk 0:02:37]} 17. Rad1 {[%clk 0:02:11]}  a5 {[%clk 0:02:28]} 18. a4 {[%clk 0:02:09]}  d3 {[%clk 0:02:22]} 19. c3 {[%clk 0:02:09]}  Rab8 {[%clk 0:02:12]} 20. Nc4 {[%clk 0:02:08]}  Rd5 {[%clk 0:02:12]} 21. Re3 {[%clk 0:02:01]}  Rc5 {[%clk 0:02:08]} 22. Re4 {[%clk 0:02:02]}  Bd8 {[%clk 0:01:40]} 23. Rxd3 {[%clk 0:01:59]}  f5 {[%clk 0:01:40]} 24. Red4 {[%clk 0:01:28]}  Bf6 {[%clk 0:01:36]} 25. Rd7+ {[%clk 0:01:28]}  Kh6 {[%clk 0:01:08]} 26. Ne3 {[%clk 0:01:10]}  Rxb2 {[%clk 0:01:06]} 27. Rf7 {[%clk 0:01:10]}  Rxc3 {[%clk 0:00:57]} 28. Rdd7 {[%clk 0:01:08]}  Rxe3 {[%clk 0:00:31]} 29. fxe3 {[%clk 0:01:02]}  Be5 {[%clk 0:00:31]} 30. Rxh7+ {[%clk 0:00:30]}  Kg5 {[%clk 0:00:31]} 31. g4 {[%clk 0:00:30]}  fxg4 {[%clk 0:00:19]} 32. hxg4 {[%clk 0:00:31]}  Kxg4 {[%clk 0:00:19]} 33. e4 {[%clk 0:00:27]}  c5 {[%clk 0:00:17]} 34. Kf1 {[%clk 0:00:26]}  Kf3 {[%clk 0:00:13]} 35. Ke1 {[%clk 0:00:20]}  Bf4 {[%clk 0:00:12]} 36. Kd1 {[%clk 0:00:18]}  Kxe4 {[%clk 0:00:12]} 37. Rhe7+ {[%clk 0:00:17]}  Kf3 {[%clk 0:00:11]} 38. Rd5 {[%clk 0:00:17]}  c4 {[%clk 0:00:10]} 39. Rc5 {[%clk 0:00:17]}  Rb4 {[%clk 0:00:08]} 40. Rf7 {[%clk 0:00:16]}  Rb1+ {[%clk 0:00:08]} 41. Kc2 {[%clk 0:00:15]}  Rb4 {[%clk 0:00:04]} 42. Kc3 {[%clk 0:00:15]}  Rxa4 {[%clk 0:00:04]} 43. Rc6 {[%clk 0:00:15]}  g5 {[%clk 0:00:04]} 44. Rxc4 {[%clk 0:00:13]}  Rxc4+ {[%clk 0:00:03]} 45. Kxc4 {[%clk 0:00:14]}  g4 {[%clk 0:00:04]} 46. Kb5 {[%clk 0:00:14]}  g3 {[%clk 0:00:03]} 47. Rg7 {[%clk 0:00:14]}  g2 {[%clk 0:00:02]} 48. Rxg2 {[%clk 0:00:13]}  Kxg2 {[%clk 0:00:03]} 49. Kxa5 {[%clk 0:00:14]} 1/2-1/2

[Event "January 9 Late 2024"]
[Site "https://www.chess.com"]
[Date "2024.01.09"]
[Round "3"]
[White "Domalchuk-Jonasson, Aleksandr"]
[Black "Cilek, Bora"]
[Result "1/2-1/2"]
[Board "122"]
[TimeControl "180+1"]
[WhiteFideId "14142805"]
[BlackFideId "34502165"]
[WhiteElo "2621"]
[BlackElo "2454"]
[WhiteTeam "ISL"]
[BlackTeam "TUR"]
[WhiteClock "0:00:14"]
[BlackClock "0:00:12"]

1. f4 {[%clk 0:03:00]}  g6 {[%clk 0:03:00]} 2. e4 {[%clk 0:03:00]}  Bg7 {[%clk 0:03:01]} 3. d4 {[%clk 0:03:00]}  d5 {[%clk 0:02:59]} 4. e5 {[%clk 0:02:59]}  h5 {[%clk 0:02:59]} 5. Bd3 {[%clk 0:02:56]}  c5 {[%clk 0:02:59]} 6. c3 {[%clk 0:02:56]}  Nc6 {[%clk 0:02:57]} 7. Be3 {[%clk 0:02:54]}  cxd4 {[%clk 0:02:56]} 8. cxd4 {[%clk 0:02:54]}  Bf5 {[%clk 0:02:51]} 9. Bxf5 {[%clk 0:02:53]}  gxf5 {[%clk 0:02:52]} 10. Nf3 {[%clk 0:02:53]}  e6 {[%clk 0:02:51]} 11. Nc3 {[%clk 0:02:52]}  Nge7 {[%clk 0:02:51]} 12. Kf2 {[%clk 0:02:46]}  Qb6 {[%clk 0:02:46]} 13. Na4 {[%clk 0:02:45]}  Qb5 {[%clk 0:02:42]} 14. Rc1 {[%clk 0:02:43]}  Ng6 {[%clk 0:02:26]} 15. Rc5 {[%clk 0:02:42]}  Qa6 {[%clk 0:02:22]} 16. a3 {[%clk 0:02:42]}  Bf8 {[%clk 0:02:22]} 17. Rc1 {[%clk 0:02:38]}  Be7 {[%clk 0:02:21]} 18. b4 {[%clk 0:02:36]}  Qb5 {[%clk 0:02:17]} 19. Nc3 {[%clk 0:02:33]}  Qb6 {[%clk 0:02:12]} 20. Qa4 {[%clk 0:02:31]}  O-O {[%clk 0:02:08]} 21. Qd1 {[%clk 0:02:19]}  Rac8 {[%clk 0:01:58]} 22. Nd2 {[%clk 0:02:19]}  h4 {[%clk 0:01:51]} 23. g3 {[%clk 0:02:18]}  hxg3+ {[%clk 0:01:50]} 24. hxg3 {[%clk 0:02:19]}  Kg7 {[%clk 0:01:50]} 25. Nb3 {[%clk 0:02:16]}  Rh8 {[%clk 0:01:41]} 26. Kg2 {[%clk 0:01:32]}  Rxh1 {[%clk 0:01:32]} 27. Qxh1 {[%clk 0:01:33]}  Nxb4 {[%clk 0:01:27]} 28. axb4 {[%clk 0:01:29]}  Qxb4 {[%clk 0:01:28]} 29. Nc5 {[%clk 0:01:29]}  Bxc5 {[%clk 0:01:25]} 30. dxc5 {[%clk 0:01:30]}  d4 {[%clk 0:01:26]} 31. Bf2 {[%clk 0:00:51]}  dxc3 {[%clk 0:01:21]} 32. Qe1 {[%clk 0:00:52]}  a5 {[%clk 0:01:09]} 33. Qxc3 {[%clk 0:00:51]}  Qe4+ {[%clk 0:01:09]} 34. Qf3 {[%clk 0:00:50]}  Ne7 {[%clk 0:00:53]} 35. Qxe4 {[%clk 0:00:46]}  fxe4 {[%clk 0:00:54]} 36. Rb1 {[%clk 0:00:47]}  Nd5 {[%clk 0:00:50]} 37. Bd4 {[%clk 0:00:46]}  Nb4 {[%clk 0:00:45]} 38. Kf2 {[%clk 0:00:41]}  Rd8 {[%clk 0:00:42]} 39. Bc3 {[%clk 0:00:36]}  Nd3+ {[%clk 0:00:41]} 40. Ke3 {[%clk 0:00:37]}  Nxc5 {[%clk 0:00:40]} 41. Bd4 {[%clk 0:00:31]}  Rd5 {[%clk 0:00:35]} 42. Rb5 {[%clk 0:00:26]}  Nd3 {[%clk 0:00:13]} 43. Rxb7 {[%clk 0:00:27]}  Nb4 {[%clk 0:00:10]} 44. Kxe4 {[%clk 0:00:26]}  Nc6 {[%clk 0:00:09]} 45. Bb2 {[%clk 0:00:18]}  a4 {[%clk 0:00:07]} 46. f5 {[%clk 0:00:17]}  Ra5 {[%clk 0:00:07]} 47. Rc7 {[%clk 0:00:16]}  a3 {[%clk 0:00:07]} 48. Bxa3 {[%clk 0:00:15]}  Rxa3 {[%clk 0:00:06]} 49. Rxc6 {[%clk 0:00:16]}  Ra4+ {[%clk 0:00:06]} 50. Kf3 {[%clk 0:00:15]}  exf5 {[%clk 0:00:07]} 51. Rf6 {[%clk 0:00:16]}  Ra3+ {[%clk 0:00:06]} 52. Kf4 {[%clk 0:00:16]}  Ra4+ {[%clk 0:00:07]} 53. Kxf5 {[%clk 0:00:17]}  Ra3 {[%clk 0:00:08]} 54. Kf4 {[%clk 0:00:17]}  Ra4+ {[%clk 0:00:08]} 55. Kf5 {[%clk 0:00:17]}  Ra3 {[%clk 0:00:08]} 56. Kg4 {[%clk 0:00:18]}  Ra4+ {[%clk 0:00:09]} 57. Rf4 {[%clk 0:00:18]}  Ra5 {[%clk 0:00:09]} 58. Re4 {[%clk 0:00:18]}  Kg6 {[%clk 0:00:10]} 59. Kf4 {[%clk 0:00:18]}  Rd5 {[%clk 0:00:10]} 60. Ra4 {[%clk 0:00:18]}  Rd1 {[%clk 0:00:10]} 61. Ra6+ {[%clk 0:00:19]}  Kg7 {[%clk 0:00:11]} 62. Ra7 {[%clk 0:00:18]}  Rf1+ {[%clk 0:00:12]} 63. Kg5 {[%clk 0:00:18]}  Re1 {[%clk 0:00:11]} 64. Kf5 {[%clk 0:00:18]}  Rf1+ {[%clk 0:00:12]} 65. Kg4 {[%clk 0:00:19]}  Re1 {[%clk 0:00:13]} 66. Kf4 {[%clk 0:00:19]}  Rf1+ {[%clk 0:00:13]} 67. Ke4 {[%clk 0:00:19]}  Re1+ {[%clk 0:00:14]} 68. Kd4 {[%clk 0:00:18]}  Kg6 {[%clk 0:00:14]} 69. Ra6+ {[%clk 0:00:18]}  Kg7 {[%clk 0:00:13]} 70. Ra3 {[%clk 0:00:14]}  Kg6 {[%clk 0:00:13]} 71. Rf3 {[%clk 0:00:14]}  Ra1 {[%clk 0:00:11]} 72. Rf6+ {[%clk 0:00:14]}  Kg7 {[%clk 0:00:12]} 73. Ke4 {[%clk 0:00:14]}  Ra4+ {[%clk 0:00:12]} 74. Kf5 {[%clk 0:00:14]} 1/2-1/2

[Event "January 9 Late 2024"]
[Site "https://www.chess.com"]
[Date "2024.01.09"]
[Round "3"]
[White "Li, Tedric"]
[Black "Onufrienko, Vladislav"]
[Result "1-0"]
[Board "123"]
[TimeControl "180+1"]
[WhiteFideId "3242897"]
[BlackFideId "13804332"]
[WhiteElo "2454"]
[BlackElo "2620"]
[WhiteTeam "AUS"]
[BlackTeam "KGZ"]
[WhiteClock "0:00:59"]
[BlackClock "0:00:46"]

1. d4 {[%clk 0:03:00]}  d5 {[%clk 0:02:59]} 2. c4 {[%clk 0:03:00]}  c6 {[%clk 0:03:00]} 3. Nf3 {[%clk 0:02:59]}  e6 {[%clk 0:03:00]} 4. e3 {[%clk 0:02:58]}  f5 {[%clk 0:03:00]} 5. Nc3 {[%clk 0:02:58]}  Nf6 {[%clk 0:03:01]} 6. Ne5 {[%clk 0:02:58]}  Bd6 {[%clk 0:03:01]} 7. f4 {[%clk 0:02:58]}  O-O {[%clk 0:03:02]} 8. Be2 {[%clk 0:02:57]}  b6 {[%clk 0:03:03]} 9. O-O {[%clk 0:02:58]}  Bb7 {[%clk 0:03:03]} 10. b3 {[%clk 0:02:56]}  Nbd7 {[%clk 0:03:02]} 11. Bb2 {[%clk 0:02:55]}  Ne4 {[%clk 0:03:02]} 12. Nxe4 {[%clk 0:02:50]}  dxe4 {[%clk 0:03:02]} 13. Kh1 {[%clk 0:02:42]}  Nf6 {[%clk 0:02:50]} 14. g4 {[%clk 0:02:41]}  c5 {[%clk 0:02:48]} 15. gxf5 {[%clk 0:02:30]}  exf5 {[%clk 0:02:49]} 16. d5 {[%clk 0:02:30]}  Qe7 {[%clk 0:02:39]} 17. Bh5 {[%clk 0:02:23]}  Rac8 {[%clk 0:02:35]} 18. Rg1 {[%clk 0:02:20]}  Rc7 {[%clk 0:02:35]} 19. Qe2 {[%clk 0:02:15]}  Ba6 {[%clk 0:02:29]} 20. Rg2 {[%clk 0:02:10]}  Bb7 {[%clk 0:02:18]} 21. Rag1 {[%clk 0:02:09]}  a6 {[%clk 0:02:08]} 22. Bf7+ {[%clk 0:01:34]}  Rxf7 {[%clk 0:02:06]} 23. Nxf7 {[%clk 0:01:35]}  Qxf7 {[%clk 0:01:50]} 24. Rxg7+ {[%clk 0:01:34]}  Qxg7 {[%clk 0:01:51]} 25. Rxg7+ {[%clk 0:01:35]}  Kxg7 {[%clk 0:01:52]} 26. Qh5 {[%clk 0:01:35]}  h6 {[%clk 0:01:39]} 27. Qxf5 {[%clk 0:01:33]}  Rf7 {[%clk 0:01:26]} 28. Bxf6+ {[%clk 0:01:32]}  Rxf6 {[%clk 0:01:18]} 29. Qd7+ {[%clk 0:01:31]}  Rf7 {[%clk 0:01:10]} 30. Qxd6 {[%clk 0:01:31]}  Bc8 {[%clk 0:01:07]} 31. Qe5+ {[%clk 0:01:30]}  Kh7 {[%clk 0:01:01]} 32. Qxe4+ {[%clk 0:01:29]}  Bf5 {[%clk 0:01:01]} 33. Qe5 {[%clk 0:01:29]}  Bg4 {[%clk 0:00:56]} 34. Kg1 {[%clk 0:01:22]}  Rg7 {[%clk 0:00:54]} 35. Kf2 {[%clk 0:01:22]}  Bh3 {[%clk 0:00:54]} 36. Qe4+ {[%clk 0:01:22]}  Kh8 {[%clk 0:00:54]} 37. d6 {[%clk 0:01:19]}  b5 {[%clk 0:00:53]} 38. f5 {[%clk 0:01:04]}  Rf7 {[%clk 0:00:49]} 39. Qe8+ {[%clk 0:01:03]}  Kg7 {[%clk 0:00:50]} 40. e4 {[%clk 0:01:03]}  bxc4 {[%clk 0:00:48]} 41. bxc4 {[%clk 0:01:03]}  Kf6 {[%clk 0:00:46]} 42. d7 {[%clk 0:00:59]} 1-0

[Event "January 9 Late 2024"]
[Site "https://www.chess.com"]
[Date "2024.01.09"]
[Round "3"]
[White "Garrido Diaz, Jose Antonio"]
[Black "Martin Fuentes, Alberto"]
[Result "0-1"]
[Board "124"]
[TimeControl "180+1"]
[WhiteFideId "24516252"]
[BlackFideId "2292289"]
[WhiteElo "2453"]
[BlackElo "2619"]
[WhiteTeam "ESP"]
[BlackTeam "ESP"]
[WhiteClock "0:00:27"]
[BlackClock "0:00:14"]

1. Nf3 {[%clk 0:02:55]}  Nf6 {[%clk 0:02:59]} 2. g3 {[%clk 0:02:56]}  g6 {[%clk 0:03:00]} 3. Bg2 {[%clk 0:02:57]}  c5 {[%clk 0:02:59]} 4. c4 {[%clk 0:02:57]}  Nc6 {[%clk 0:02:59]} 5. Nc3 {[%clk 0:02:58]}  d6 {[%clk 0:02:59]} 6. O-O {[%clk 0:02:58]}  Bg7 {[%clk 0:02:59]} 7. a3 {[%clk 0:02:56]}  O-O {[%clk 0:02:59]} 8. Rb1 {[%clk 0:02:57]}  Bd7 {[%clk 0:02:58]} 9. b4 {[%clk 0:02:57]}  Rb8 {[%clk 0:02:54]} 10. b5 {[%clk 0:02:53]}  Nd4 {[%clk 0:02:44]} 11. Nxd4 {[%clk 0:02:52]}  cxd4 {[%clk 0:02:45]} 12. Nd5 {[%clk 0:02:50]}  Nxd5 {[%clk 0:02:38]} 13. Bxd5 {[%clk 0:02:51]}  e6 {[%clk 0:02:36]} 14. Bg2 {[%clk 0:02:50]}  a6 {[%clk 0:02:25]} 15. a4 {[%clk 0:02:50]}  a5 {[%clk 0:02:22]} 16. Ba3 {[%clk 0:02:50]}  Bc8 {[%clk 0:02:09]} 17. c5 {[%clk 0:02:38]}  dxc5 {[%clk 0:01:58]} 18. Bxc5 {[%clk 0:02:39]}  Re8 {[%clk 0:01:58]} 19. Qc2 {[%clk 0:02:39]}  b6 {[%clk 0:01:56]} 20. Ba3 {[%clk 0:02:38]}  Bf8 {[%clk 0:01:51]} 21. Bxf8 {[%clk 0:02:35]}  Rxf8 {[%clk 0:01:51]} 22. Rfc1 {[%clk 0:02:36]}  e5 {[%clk 0:01:45]} 23. Qc7 {[%clk 0:02:35]}  Qxc7 {[%clk 0:01:45]} 24. Rxc7 {[%clk 0:02:36]}  Be6 {[%clk 0:01:46]} 25. d3 {[%clk 0:02:23]}  Rfc8 {[%clk 0:01:42]} 26. Rxc8+ {[%clk 0:02:22]}  Rxc8 {[%clk 0:01:41]} 27. Bc6 {[%clk 0:02:23]}  Kf8 {[%clk 0:01:41]} 28. e3 {[%clk 0:02:16]}  dxe3 {[%clk 0:01:36]} 29. fxe3 {[%clk 0:02:16]}  Ke7 {[%clk 0:01:37]} 30. Kf2 {[%clk 0:02:16]}  Kd6 {[%clk 0:01:37]} 31. d4 {[%clk 0:02:16]}  exd4 {[%clk 0:01:34]} 32. exd4 {[%clk 0:02:17]}  Bd5 {[%clk 0:01:34]} 33. Ke3 {[%clk 0:02:05]}  Bxc6 {[%clk 0:01:32]} 34. bxc6 {[%clk 0:02:06]}  Rxc6 {[%clk 0:01:31]} 35. Ke4 {[%clk 0:02:06]}  f5+ {[%clk 0:01:28]} 36. Kd3 {[%clk 0:02:05]}  Kc7 {[%clk 0:01:18]} 37. Re1 {[%clk 0:02:04]}  Kd7 {[%clk 0:01:13]} 38. d5 {[%clk 0:02:00]}  Rc5 {[%clk 0:01:10]} 39. Kd4 {[%clk 0:01:59]}  Rc2 {[%clk 0:01:10]} 40. Rb1 {[%clk 0:01:58]}  Kc7 {[%clk 0:01:05]} 41. Re1 {[%clk 0:01:58]}  Rxh2 {[%clk 0:00:54]} 42. Re7+ {[%clk 0:01:58]}  Kd6 {[%clk 0:00:55]} 43. Re6+ {[%clk 0:01:58]}  Kd7 {[%clk 0:00:54]} 44. Rxb6 {[%clk 0:01:57]}  Ra2 {[%clk 0:00:53]} 45. Ke5 {[%clk 0:01:46]}  Re2+ {[%clk 0:00:50]} 46. Kd4 {[%clk 0:01:46]}  Re4+ {[%clk 0:00:51]} 47. Kc5 {[%clk 0:01:46]}  Rxa4 {[%clk 0:00:47]} 48. Rb7+ {[%clk 0:01:46]}  Ke8 {[%clk 0:00:45]} 49. Kd6 {[%clk 0:01:39]}  Rg4 {[%clk 0:00:42]} 50. Re7+ {[%clk 0:01:34]}  Kf8 {[%clk 0:00:42]} 51. Rxh7 {[%clk 0:01:32]}  Rxg3 {[%clk 0:00:42]} 52. Rh8+ {[%clk 0:01:25]}  Kf7 {[%clk 0:00:41]} 53. Ra8 {[%clk 0:01:24]}  Ra3 {[%clk 0:00:39]} 54. Ra7+ {[%clk 0:01:21]}  Kf6 {[%clk 0:00:39]} 55. Kd7 {[%clk 0:01:20]}  f4 {[%clk 0:00:38]} 56. d6 {[%clk 0:01:16]}  f3 {[%clk 0:00:38]} 57. Ke8 {[%clk 0:01:16]}  Re3+ {[%clk 0:00:21]} 58. Kf8 {[%clk 0:01:16]}  Rd3 {[%clk 0:00:20]} 59. Rf7+ {[%clk 0:00:55]}  Ke5 {[%clk 0:00:18]} 60. d7 {[%clk 0:00:52]}  g5 {[%clk 0:00:17]} 61. Ke8 {[%clk 0:00:52]}  g4 {[%clk 0:00:16]} 62. Re7+ {[%clk 0:00:42]}  Kf4 {[%clk 0:00:16]} 63. Rf7+ {[%clk 0:00:39]}  Kg3 {[%clk 0:00:16]} 64. Re7 {[%clk 0:00:27]}  f2 {[%clk 0:00:14]} 0-1

[Event "January 9 Late 2024"]
[Site "https://www.chess.com"]
[Date "2024.01.09"]
[Round "3"]
[White "Joie, Sebastien"]
[Black "Al-Tarboush, Ward"]
[Result "0-1"]
[Board "125"]
[TimeControl "180+1"]
[WhiteFideId "650420"]
[BlackFideId "7601450"]
[WhiteElo "2450"]
[BlackElo "2615"]
[WhiteTeam "FRA"]
[BlackTeam "NOR"]
[WhiteClock "0:00:00"]
[BlackClock "0:00:38"]

1. d4 {[%clk 0:02:53]}  Nf6 {[%clk 0:02:59]} 2. c4 {[%clk 0:02:53]}  b6 {[%clk 0:02:59]} 3. Nc3 {[%clk 0:02:53]}  Bb7 {[%clk 0:02:59]} 4. d5 {[%clk 0:02:53]}  e6 {[%clk 0:02:59]} 5. e4 {[%clk 0:02:54]}  Bd6 {[%clk 0:02:59]} 6. Bd3 {[%clk 0:02:47]}  Be5 {[%clk 0:02:57]} 7. Nge2 {[%clk 0:02:45]}  a5 {[%clk 0:02:49]} 8. O-O {[%clk 0:02:42]}  Na6 {[%clk 0:02:49]} 9. f4 {[%clk 0:02:34]}  Bxc3 {[%clk 0:02:49]} 10. Nxc3 {[%clk 0:02:35]}  exd5 {[%clk 0:02:47]} 11. exd5 {[%clk 0:01:48]}  O-O {[%clk 0:02:45]} 12. Be3 {[%clk 0:01:46]}  Nc5 {[%clk 0:02:45]} 13. Bc2 {[%clk 0:01:41]}  d6 {[%clk 0:02:45]} 14. a3 {[%clk 0:01:39]}  Re8 {[%clk 0:02:43]} 15. Bd4 {[%clk 0:01:36]}  Ba6 {[%clk 0:02:41]} 16. b4 {[%clk 0:01:28]}  Bxc4 {[%clk 0:02:34]} 17. bxc5 {[%clk 0:01:24]}  bxc5 {[%clk 0:02:29]} 18. Rf3 {[%clk 0:00:51]}  cxd4 {[%clk 0:02:27]} 19. Qxd4 {[%clk 0:00:52]}  Ba6 {[%clk 0:02:26]} 20. Rh3 {[%clk 0:00:46]}  h6 {[%clk 0:02:25]} 21. Ba4 {[%clk 0:00:25]}  Rf8 {[%clk 0:02:16]} 22. Re1 {[%clk 0:00:23]}  Rb8 {[%clk 0:02:11]} 23. Rg3 {[%clk 0:00:16]}  Kh8 {[%clk 0:02:04]} 24. Ree3 {[%clk 0:00:10]}  Rb2 {[%clk 0:02:00]} 25. h3 {[%clk 0:00:08]}  Nh5 {[%clk 0:01:49]} 26. Rgf3 {[%clk 0:00:08]}  Qf6 {[%clk 0:01:47]} 27. Qa7 {[%clk 0:00:08]}  Nxf4 {[%clk 0:01:43]} 28. Qxa6 {[%clk 0:00:04]}  Rxg2+ {[%clk 0:01:43]} 29. Kh1 {[%clk 0:00:03]}  Qg5 {[%clk 0:01:36]} 30. Qf1 {[%clk 0:00:04]}  Rb8 {[%clk 0:01:19]} 31. Rxf4 {[%clk 0:00:04]}  Rbb2 {[%clk 0:01:19]} 32. Ne2 {[%clk 0:00:03]}  Rgxe2 {[%clk 0:00:52]} 33. Rxe2 {[%clk 0:00:03]}  Rxe2 {[%clk 0:00:52]} 34. Qxe2 {[%clk 0:00:02]}  Qxf4 {[%clk 0:00:51]} 35. Bc6 {[%clk 0:00:01]}  Qc1+ {[%clk 0:00:48]} 36. Kg2 {[%clk 0:00:01]}  Qf4 {[%clk 0:00:46]} 37. Qe8+ {[%clk 0:00:01]}  Kh7 {[%clk 0:00:46]} 38. Bb5 {[%clk 0:00:02]}  Qd2+ {[%clk 0:00:44]} 39. Qe2 {[%clk 0:00:02]}  Qxd5+ {[%clk 0:00:43]} 40. Kh2 {[%clk 0:00:00]}  g6 {[%clk 0:00:38]} 0-1

[Event "January 9 Late 2024"]
[Site "https://www.chess.com"]
[Date "2024.01.10"]
[Round "3"]
[White "Hejazipour, Mitra"]
[Black "Stremavicius, Titas"]
[Result "0-1"]
[Board "126"]
[TimeControl "180+1"]
[WhiteFideId "12505951"]
[BlackFideId "12804444"]
[WhiteElo "2450"]
[BlackElo "2615"]
[WhiteTeam "FRA"]
[BlackTeam "LTU"]
[WhiteClock "0:00:06"]
[BlackClock "0:00:28"]

1. d4 {[%clk 0:02:55]}  f5 {[%clk 0:02:57]} 2. Nf3 {[%clk 0:02:52]}  Nf6 {[%clk 0:02:57]} 3. c4 {[%clk 0:02:52]}  e6 {[%clk 0:02:57]} 4. Nc3 {[%clk 0:02:52]}  Bb4 {[%clk 0:02:53]} 5. Bd2 {[%clk 0:02:51]}  b6 {[%clk 0:02:52]} 6. a3 {[%clk 0:02:49]}  Bxc3 {[%clk 0:02:51]} 7. Bxc3 {[%clk 0:02:49]}  Ne4 {[%clk 0:02:51]} 8. Rc1 {[%clk 0:02:49]}  O-O {[%clk 0:02:51]} 9. g3 {[%clk 0:02:49]}  Bb7 {[%clk 0:02:48]} 10. Bg2 {[%clk 0:02:48]}  d6 {[%clk 0:02:48]} 11. O-O {[%clk 0:02:47]}  Nxc3 {[%clk 0:02:48]} 12. Rxc3 {[%clk 0:02:47]}  Nd7 {[%clk 0:02:48]} 13. b4 {[%clk 0:02:31]}  Qf6 {[%clk 0:02:38]} 14. Nh4 {[%clk 0:02:29]}  Bxg2 {[%clk 0:02:37]} 15. Nxg2 {[%clk 0:02:29]}  a5 {[%clk 0:02:38]} 16. Qc2 {[%clk 0:02:16]}  axb4 {[%clk 0:02:32]} 17. axb4 {[%clk 0:02:15]}  Qxd4 {[%clk 0:02:32]} 18. Nf4 {[%clk 0:02:13]}  Qf6 {[%clk 0:02:32]} 19. Re3 {[%clk 0:02:11]}  Rfe8 {[%clk 0:02:31]} 20. Rd1 {[%clk 0:02:07]}  Ne5 {[%clk 0:02:25]} 21. c5 {[%clk 0:01:59]}  Ng4 {[%clk 0:02:23]} 22. Rc3 {[%clk 0:01:30]}  bxc5 {[%clk 0:02:20]} 23. bxc5 {[%clk 0:01:30]}  d5 {[%clk 0:02:20]} 24. c6 {[%clk 0:01:27]}  g5 {[%clk 0:02:13]} 25. Nd3 {[%clk 0:01:18]}  Qh6 {[%clk 0:02:11]} 26. h4 {[%clk 0:01:00]}  gxh4 {[%clk 0:02:12]} 27. Kg2 {[%clk 0:00:56]}  hxg3 {[%clk 0:01:59]} 28. Rh1 {[%clk 0:00:55]}  Qg5 {[%clk 0:01:58]} 29. f4 {[%clk 0:00:44]}  Qg7 {[%clk 0:01:33]} 30. Nc5 {[%clk 0:00:43]}  Ra2 {[%clk 0:01:20]} 31. Qxa2 {[%clk 0:00:21]}  Qxc3 {[%clk 0:01:18]} 32. Nd3 {[%clk 0:00:11]}  Ne3+ {[%clk 0:00:50]} 33. Kxg3 {[%clk 0:00:11]}  Qg7+ {[%clk 0:00:50]} 34. Kf3 {[%clk 0:00:11]}  d4 {[%clk 0:00:49]} 35. Ne1 {[%clk 0:00:04]}  Qg4+ {[%clk 0:00:48]} 36. Kf2 {[%clk 0:00:04]}  Qxf4+ {[%clk 0:00:49]} 37. Nf3 {[%clk 0:00:05]}  Ng4+ {[%clk 0:00:49]} 38. Ke1 {[%clk 0:00:04]}  d3 {[%clk 0:00:47]} 39. Qd2 {[%clk 0:00:03]}  Qg3+ {[%clk 0:00:46]} 40. Kd1 {[%clk 0:00:03]}  Nf2+ {[%clk 0:00:45]} 41. Kc1 {[%clk 0:00:03]}  Nxh1 {[%clk 0:00:45]} 42. Qxd3 {[%clk 0:00:03]}  Qf4+ {[%clk 0:00:30]} 43. Kc2 {[%clk 0:00:03]}  Qe4 {[%clk 0:00:29]} 44. Qxe4 {[%clk 0:00:03]}  fxe4 {[%clk 0:00:29]} 45. Ne5 {[%clk 0:00:04]}  h5 {[%clk 0:00:28]} 46. Kc3 {[%clk 0:00:05]}  h4 {[%clk 0:00:28]} 47. Kd4 {[%clk 0:00:05]}  h3 {[%clk 0:00:29]} 48. Kxe4 {[%clk 0:00:06]}  h2 {[%clk 0:00:28]} 49. Ng4 {[%clk 0:00:07]}  Ng3+ {[%clk 0:00:28]} 50. Kf4 {[%clk 0:00:06]}  h1=Q {[%clk 0:00:28]} 0-1

[Event "January 9 Late 2024"]
[Site "https://www.chess.com"]
[Date "2024.01.09"]
[Round "3"]
[White "Mazurkiewicz, Michal"]
[Black "Korchynskyi, Mykola"]
[Result "0-1"]
[Board "127"]
[TimeControl "180+1"]
[WhiteFideId "1124943"]
[BlackFideId "34138005"]
[WhiteElo "2450"]
[BlackElo "2614"]
[WhiteTeam "POL"]
[BlackTeam "UKR"]
[WhiteClock "0:00:17"]
[BlackClock "0:00:39"]

1. e4 {[%clk 0:03:00]}  e6 {[%clk 0:02:59]} 2. d3 {[%clk 0:03:00]}  d5 {[%clk 0:02:59]} 3. Nd2 {[%clk 0:03:00]}  Nf6 {[%clk 0:03:00]} 4. Ngf3 {[%clk 0:03:01]}  Be7 {[%clk 0:02:59]} 5. g3 {[%clk 0:03:00]}  dxe4 {[%clk 0:02:57]} 6. dxe4 {[%clk 0:03:01]}  Nc6 {[%clk 0:02:57]} 7. Bg2 {[%clk 0:03:01]}  e5 {[%clk 0:02:57]} 8. O-O {[%clk 0:03:01]}  O-O {[%clk 0:02:57]} 9. Qe2 {[%clk 0:03:01]}  Bg4 {[%clk 0:02:50]} 10. c3 {[%clk 0:03:01]}  Qc8 {[%clk 0:02:48]} 11. Nc4 {[%clk 0:02:59]}  Bd6 {[%clk 0:02:48]} 12. Nxd6 {[%clk 0:02:44]}  cxd6 {[%clk 0:02:48]} 13. Rd1 {[%clk 0:02:43]}  Rd8 {[%clk 0:02:49]} 14. Bg5 {[%clk 0:02:43]}  Qe6 {[%clk 0:02:46]} 15. Rd2 {[%clk 0:02:34]}  Ne7 {[%clk 0:02:37]} 16. Rad1 {[%clk 0:02:27]}  Rd7 {[%clk 0:02:33]} 17. h3 {[%clk 0:02:19]}  Bh5 {[%clk 0:02:31]} 18. g4 {[%clk 0:02:14]}  Bg6 {[%clk 0:02:29]} 19. Nh4 {[%clk 0:02:13]}  h6 {[%clk 0:02:25]} 20. Bxf6 {[%clk 0:02:06]}  Qxf6 {[%clk 0:02:26]} 21. Nf5 {[%clk 0:02:06]}  Bxf5 {[%clk 0:02:23]} 22. exf5 {[%clk 0:02:06]}  Rad8 {[%clk 0:02:20]} 23. Qe3 {[%clk 0:01:59]}  d5 {[%clk 0:01:54]} 24. Qxa7 {[%clk 0:01:55]}  d4 {[%clk 0:01:52]} 25. f4 {[%clk 0:01:20]}  d3 {[%clk 0:01:28]} 26. Qe3 {[%clk 0:01:14]}  exf4 {[%clk 0:01:28]} 27. Qxf4 {[%clk 0:01:15]}  Ng6 {[%clk 0:01:19]} 28. Qe3 {[%clk 0:01:01]}  Ne5 {[%clk 0:01:20]} 29. Be4 {[%clk 0:01:00]}  Nc4 {[%clk 0:01:20]} 30. Qf3 {[%clk 0:00:56]}  Nxd2 {[%clk 0:01:07]} 31. Rxd2 {[%clk 0:00:56]}  Re7 {[%clk 0:00:44]} 32. c4 {[%clk 0:00:17]}  Qd4+ {[%clk 0:00:39]} 0-1